bitfinex/quotes_SOLUSD_20250402
["timestamp","ask_amount","ask_price","bid_price","bid_amount"]
[1743599049536,47.25349702,126.34,126.32,7.12]
[1743599049735,47.25349702,126.34,126.33,7.12]
[1743599052133,27.7029,126.34,126.33,7.12]
[1743599052341,47.25349702,126.34,126.33,7.12]
[1743599052715,65.90314588,126.34,126.33,7.12]
[1743599053529,1.5427,126.32,126.3,227.79]
[1743599053729,12.51237076,126.31,126.3,227.79]
[1743599054613,12.51237076,126.31,126.3,234.89]
[1743599054827,20.42937076,126.31,126.3,234.89]
[1743599055742,27.46883417,126.31,126.3,234.89]
[1743599057138,46.11848303,126.31,126.3,234.89]
[1743599058147,46.11848303,126.31,126.3,7.13]
[1743599058955,0.14216157,126.3,126.28,0.03]
[1743599059143,38.20148303,126.29,126.28,0.03]
[1743599059445,38.20148303,126.29,126.25,227.82]
[1743599059645,19.55183417,126.26,126.25,227.82]
[1743599060033,21.09573417,126.26,126.21,227.85]
[1743599060231,19.55183417,126.23,126.22,7.1]
[1743599060439,19.55183417,126.23,126.21,227.85]
[1743599060645,19.55183417,126.22,126.21,227.85]
[1743599060859,19.55183417,126.22,126.21,234.95]
[1743599061159,27.7249,126.24,126.21,234.95]
[1743599061343,27.47323417,126.24,126.21,254.95]
[1743599062351,7.9214,126.24,126.21,254.95]
[1743599062731,27.47323417,126.24,126.21,234.95]
[1743599062936,19.55183417,126.22,126.21,234.95]
[1743599063440,38.20148303,126.22,126.21,227.85]
[1743599064156,46.12408303,126.22,126.21,227.85]
[1743599069245,18.64964886,126.21,126.2,0.063]
[1743599069560,38.20148303,126.21,126.2,0.063]
[1743599069969,20.29694886,126.2,126.19,0.063]
[1743599070261,21.19913417,126.2,126.19,0.063]
[1743599070766,21.19913417,126.2,126.19,7.183]
[1743599071135,7.9239,126.2,126.19,7.183]
[1743599071583,27.47573417,126.2,126.19,7.183]
[1743599074460,27.47573417,126.2,126.19,7.163]
[1743599074785,65.93518303,126.2,126.17,0.03]
[1743599074985,19.55183417,126.18,126.17,0.03]
[1743599075875,12.53935832,126.18,126.17,0.03]
[1743599076073,12.53935832,126.18,126.17,7.13]
[1743599076968,20.46445832,126.18,126.17,7.13]
[1743599077566,7.9251,126.18,126.17,7.13]
[1743599078074,26.57414886,126.19,126.17,7.13]
[1743599078780,23.71,126.13,125.97,20.0]
[1743599078943,12.53935832,126.01,125.99,20.0]
[1743599079145,12.53935832,126.02,125.99,20.0]
[1743599079457,12.53935832,126.01,125.96,20.0]
[1743599079657,18.64964886,126.04,125.98,20.0]
[1743599079855,12.53935832,126.0,125.99,228.06]
[1743599080067,20.47585832,126.0,125.99,228.06]
[1743599080353,90.4744916,126.0,125.97,228.06]
[1743599080551,40.31705832,126.0,125.97,228.06]
[1743599080780,40.31705832,126.0,125.98,7.32]
[1743599080956,7.9365,126.0,125.98,27.32]
[1743599081277,20.47585832,126.0,125.98,27.32]
[1743599081781,27.58112349,126.0,125.98,27.32]
[1743599082163,19.64462349,125.99,125.98,7.32]
[1743599082898,7.9365,126.0,125.98,7.32]
[1743599083100,7.9365,126.0,125.98,27.32]
[1743599083484,27.58112349,126.0,125.98,27.32]
[1743599084005,7.9377,125.98,125.97,235.38]
[1743599084205,27.58232349,125.98,125.97,235.38]
[1743599084410,27.58232349,125.98,125.97,228.06]
[1743599085111,27.58232349,125.98,125.96,7.32]
[1743599085112,27.58232349,125.98,125.96,235.56]
[1743599085277,27.58232349,125.98,125.92,235.58]
[1743599085278,38.29427235,125.97,125.92,235.58]
[1743599085479,19.64462349,125.94,125.92,235.58]
[1743599085691,19.64462349,125.95,125.92,235.58]
[1743599085877,19.64462349,125.95,125.93,20.0]
[1743599086078,7.9402,125.94,125.93,20.0]
[1743599086779,19.64462349,125.97,125.93,20.0]
[1743599086975,27.58292349,125.97,125.95,20.0]
[1743599090583,19.64462349,125.96,125.95,20.0]
[1743599091982,19.64462349,125.97,125.95,20.0]
[1743599092786,7.939,125.96,125.95,20.0]
[1743599093914,27.58362349,125.96,125.95,228.4]
[1743599095790,47.43112349,125.96,125.93,228.4]
[1743599096020,19.64462349,125.94,125.93,228.4]
[1743599096894,7.9409,125.93,125.91,20.0]
[1743599097689,7.9405,125.94,125.91,20.0]
[1743599097916,7.9398,125.95,125.93,20.0]
[1743599098113,7.9391,125.96,125.94,7.3]
[1743599098917,19.64462349,125.96,125.94,7.3]
[1743599100428,19.64462349,125.96,125.95,228.46]
[1743599101006,27.58362349,125.96,125.95,228.46]
[1743599101234,27.58362349,125.96,125.95,235.74]
[1743599102838,18.64964886,125.95,125.92,228.46]
[1743599103034,27.58552349,125.93,125.92,228.46]
[1743599104023,27.58552349,125.93,125.92,235.74]
[1743599104224,27.58552349,125.93,125.92,228.46]
[1743599104421,27.58552349,125.93,125.9,228.46]
[1743599104618,19.64462349,125.91,125.9,228.46]
[1743599105021,29.12922349,125.91,125.9,235.74]
[1743599105517,67.63427235,125.91,125.86,0.03]
[1743599105716,19.64462349,125.89,125.86,0.03]
[1743599106136,47.98964886,125.91,125.86,0.03]
[1743599106137,19.64462349,125.87,125.86,0.03]
[1743599106311,38.29427235,125.87,125.86,0.03]
[1743599106913,19.64462349,125.87,125.86,0.03]
[1743599107113,27.58932349,125.87,125.86,0.03]
[1743599107745,7.9447,125.87,125.86,0.03]
[1743599109547,27.58932349,125.87,125.86,0.03]
[1743599109748,7.9447,125.87,125.86,0.03]
[1743599110038,27.58932349,125.87,125.86,0.03]
[1743599110949,7.9447,125.87,125.86,0.03]
[1743599111319,27.58932349,125.87,125.86,7.31]
[1743599112837,27.58932349,125.87,125.86,0.03]
[1743599113251,47.96333392,125.87,125.86,0.0001]
[1743599113555,47.96333392,125.87,125.81,228.58]
[1743599113556,0.14216157,125.85,125.81,228.58]
[1743599113747,19.64462349,125.82,125.81,228.58]
[1743599114132,19.64462349,125.82,125.8,7.31]
[1743599114456,19.64462349,125.81,125.8,0.03]
[1743599115250,46.24267235,125.81,125.78,228.58]
[1743599115437,18.64964886,125.8,125.78,228.58]
[1743599115639,19.64462349,125.79,125.78,228.58]
[1743599115839,19.64462349,125.8,125.78,228.58]
[1743599116448,19.64462349,125.8,125.79,7.28]
[1743599117256,27.59372349,125.8,125.79,7.28]
[1743599117640,7.9491,125.8,125.79,7.28]
[1743599118152,7.9485,125.81,125.79,7.28]
[1743599118353,27.59312349,125.81,125.79,7.28]
[1743599118862,19.64462349,125.8,125.79,7.28]
[1743599119355,27.59372349,125.8,125.79,7.28]
[1743599120669,19.64462349,125.82,125.79,27.28]
[1743599120864,7.948,125.82,125.79,27.28]
[1743599122248,27.59262349,125.82,125.79,27.28]
[1743599122449,19.64462349,125.81,125.79,27.28]
[1743599122865,27.59262349,125.82,125.79,27.28]
[1743599124065,7.948,125.82,125.79,27.28]
[1743599124441,27.59052349,125.85,125.8,20.0]
[1743599124640,19.64462349,125.84,125.8,20.0]
[1743599124862,7.9459,125.85,125.82,20.0]
[1743599125470,27.59052349,125.85,125.82,20.0]
[1743599126255,47.45542349,125.85,125.82,20.0]
[1743599126564,19.64462349,125.83,125.8,20.0]
[1743599127360,19.64462349,125.84,125.8,20.0]
[1743599127561,7.9472,125.83,125.8,20.0]
[1743599127867,7.9472,125.83,125.82,20.0]
[1743599128063,7.9465,125.84,125.82,20.0]
[1743599129055,7.9465,125.84,125.83,228.72]
[1743599129960,7.9459,125.85,125.83,228.72]
[1743599130164,27.59052349,125.85,125.84,7.26]
[1743599130562,20.0,125.82,125.79,0.03]
[1743599130770,19.64462349,125.8,125.79,0.03]
[1743599131372,19.64462349,125.81,125.79,0.03]
[1743599131548,39.64462349,125.82,125.79,20.03]
[1743599131747,60.45946955,125.85,125.79,20.03]
[1743599131948,19.64462349,125.83,125.79,20.03]
[1743599132150,7.9478,125.82,125.79,20.03]
[1743599133380,19.8649,125.85,125.81,20.0]
[1743599133564,7.9465,125.84,125.82,7.34]
[1743599134380,19.64462349,125.83,125.82,7.34]
[1743599134671,19.64462349,125.83,125.8,228.74]
[1743599134976,19.64462349,125.83,125.82,7.34]
[1743599135159,47.45752349,125.84,125.82,7.34]
[1743599135775,19.64462349,125.83,125.82,7.34]
[1743599135949,19.64462349,125.83,125.8,228.74]
[1743599136147,27.59302349,125.81,125.8,228.74]
[1743599136952,7.9484,125.81,125.8,228.74]
[1743599137153,7.9484,125.81,125.8,236.08]
[1743599138986,13.99902069,125.86,125.81,20.0]
[1743599139275,7.9459,125.85,125.81,20.0]
[1743599139866,47.45542349,125.85,125.81,20.0]
[1743599140061,27.8108,125.85,125.82,7.34]
[1743599140273,7.9459,125.85,125.83,20.0]
[1743599140786,8.0089,125.85,125.83,20.0]
[1743599143588,0.063,125.85,125.83,20.0]
[1743599146067,0.063,125.85,125.83,27.9471]
[1743599147389,0.063,125.85,125.83,27.9469]
[1743599147584,0.063,125.85,125.84,0.14216157]
[1743599147788,0.063,125.85,125.84,8.08866157]
[1743599148168,0.063,125.85,125.84,26.73831043]
[1743599149993,7.9415,125.92,125.91,20.0]
[1743599150300,7.9415,125.92,125.91,256.02]
[1743599150470,8.0042,125.93,125.91,256.02]
[1743599151575,0.063,125.93,125.91,256.02]
[1743599153368,19.64462349,125.92,125.89,20.0]
[1743599153575,19.64462349,125.9,125.89,7.32]
[1743599153791,19.64462349,125.91,125.89,7.32]
[1743599154097,19.64462349,125.92,125.89,7.32]
[1743599154979,7.9421,125.91,125.89,7.32]
[1743599155275,7.9421,125.91,125.89,27.32]
[1743599157178,19.64462349,125.9,125.89,7.32]
[1743599158993,7.9421,125.91,125.89,7.32]
[1743599158994,27.58672349,125.91,125.89,7.32]
[1743599159196,39.49842349,125.92,125.89,7.32]
[1743599159972,19.8538,125.92,125.89,7.32]
[1743599160190,39.49842349,125.92,125.89,7.32]
[1743599160393,0.063,125.9,125.89,7.32]
[1743599162380,0.063,125.9,125.89,7.28]
[1743599163290,8.0058,125.9,125.89,7.28]
[1743599164619,0.063,125.9,125.89,7.42216157]
[1743599164907,0.063,125.9,125.89,34.01521043]
[1743599165086,0.063,125.9,125.89,40.04931043]
[1743599169248,0.063,125.93,125.92,20.0]
[1743599170620,0.063,125.93,125.92,38.79181043]
[1743599171196,0.063,125.93,125.92,46.73331043]
[1743599172691,0.063,125.93,125.92,275.25331043]
[1743599173829,0.063,125.96,125.95,20.0]
[1743599174024,0.063,125.96,125.95,46.03181043]
[1743599175653,0.063,125.96,125.95,27.38216157]
[1743599176446,0.063,125.96,125.95,35.32176157]
[1743599176842,0.063,125.96,125.95,27.38216157]
[1743599177042,0.063,125.96,125.95,35.32176157]
[1743599177854,0.063,125.96,125.95,53.97141043]
[1743599178147,0.063,125.96,125.95,60.24281043]
[1743599179656,0.063,125.96,125.95,27.38216157]
[1743599180530,0.063,125.96,125.95,27.36216157]
[1743599181141,1.5967,125.96,125.91,20.0]
[1743599181332,19.64462349,125.92,125.91,20.0]
[1743599181534,7.9415,125.92,125.91,20.0]
[1743599182152,7.9415,125.92,125.9,7.26]
[1743599182843,7.9415,125.92,125.9,235.7]
[1743599183253,27.58612349,125.92,125.9,235.7]
[1743599183646,39.41688827,125.92,125.9,235.7]
[1743599184654,7.9415,125.92,125.9,235.7]
[1743599185961,38.01918827,125.94,125.91,20.0]
[1743599186156,7.9396,125.95,125.93,20.0]
[1743599187536,9.536,125.96,125.95,20.0]
[1743599187734,9.536,125.96,125.95,27.28]
[1743599191967,0.063,125.96,125.95,35.36176157]
[1743599192161,0.063,125.98,125.97,20.0]
[1743599192963,0.063,125.98,125.97,38.79181043]
[1743599193352,0.063,125.98,125.97,46.73011043]
[1743599194664,0.063,125.98,125.97,27.40216157]
[1743599195988,0.063,125.98,125.97,20.0]
[1743599196190,0.063,125.98,125.97,27.26]
[1743599197047,1.6345,125.98,125.95,20.0]
[1743599197276,33.10988827,125.98,125.96,7.24]
[1743599197686,7.9383,125.97,125.96,7.24]
[1743599199589,9.5725,125.98,125.97,20.0]
[1743599199757,1.6345,125.98,125.97,20.0]
[1743599200182,0.063,125.98,125.97,20.0]
[1743599200763,0.063,125.98,125.97,20.14216157]
[1743599201691,0.063,125.98,125.97,20.0]
[1743599202170,0.063,125.98,125.97,27.26]
[1743599202683,0.063,125.98,125.97,248.44]
[1743599202988,0.063,125.98,125.97,235.7]
[1743599203278,0.063,125.98,125.97,255.7]
[1743599207288,0.063,125.98,125.97,255.84216157]
[1743599209384,0.063,125.98,125.97,255.7]
[1743599209971,0.063,125.98,125.97,248.44]
[1743599210175,0.063,125.98,125.97,235.68]
[1743599210383,31.53838827,125.98,125.97,235.68]
[1743599211007,31.53838827,125.98,125.97,235.71]
[1743599212169,39.47608827,125.98,125.97,235.71]
[1743599212997,8.0007,125.98,125.97,235.71]
[1743599213316,8.0007,125.98,125.97,255.71]
[1743599214183,0.063,125.98,125.97,235.71]
[1743599214392,31.53838827,125.98,125.97,235.71]
[1743599216298,8.0007,125.98,125.97,235.71]
[1743599216513,8.0007,125.98,125.97,255.71]
[1743599217476,8.0007,125.98,125.97,235.71]
[1743599217983,39.47608827,125.98,125.97,235.71]
[1743599218599,59.32048827,125.98,125.95,228.45]
[1743599218803,31.47538827,125.96,125.95,228.45]
[1743599218986,31.47538827,125.97,125.95,235.67]
[1743599219886,33.12088827,125.96,125.95,228.45]
[1743599220104,33.12088827,125.96,125.95,235.67]
[1743599220493,41.05988827,125.96,125.95,235.67]
[1743599220699,9.5845,125.96,125.95,235.67]
[1743599222103,7.939,125.96,125.95,235.67]
[1743599222815,27.8451,125.98,125.95,235.67]
[1743599223024,31.47538827,125.96,125.95,235.67]
[1743599225021,39.41438827,125.96,125.95,228.45]
[1743599225223,59.26188827,125.96,125.92,248.46]
[1743599225382,27.7865,125.96,125.92,228.46]
[1743599225723,31.47538827,125.94,125.92,228.46]
[1743599225905,33.05348827,125.93,125.92,228.46]
[1743599226404,33.05348827,125.93,125.92,235.68]
[1743599226610,1.5781,125.93,125.92,235.68]
[1743599227317,9.519,125.93,125.92,235.68]
[1743599227817,40.99438827,125.93,125.92,235.68]
[1743599229715,29.18630805,125.93,125.92,235.68]
[1743599231398,29.18630805,125.93,125.92,235.66]
[1743599232100,9.519,125.93,125.92,235.66]
[1743599232421,7.9396,125.95,125.92,255.66]
[1743599232597,7.9383,125.97,125.94,20.0]
[1743599233908,19.66730805,125.97,125.94,20.0]
[1743599234395,47.51280805,125.98,125.94,20.0]
[1743599234594,8.0007,125.98,125.94,20.0]
[1743599234826,8.0007,125.98,125.97,20.0]
[1743599235115,0.063,125.98,125.97,27.18]
[1743599236120,0.063,125.98,125.97,7.18]
[1743599236307,31.5019727,125.98,125.97,7.18]
[1743599236794,0.063,125.98,125.97,7.18]
[1743599237638,0.063,125.98,125.97,27.18]
[1743599240600,0.063,125.98,125.97,27.32216157]
[1743599240800,0.063,125.98,125.97,35.26046157]
[1743599242527,0.063,125.98,125.97,53.91011043]
[1743599247910,0.063,126.03,126.02,20.14216157]
[1743599248156,0.063,126.03,126.02,27.30216157]
[1743599249166,0.063,126.03,126.02,53.88701043]
[1743599249340,0.063,126.06,126.05,20.0]
[1743599252665,0.063,126.06,126.05,248.34]
[1743599253666,0.063,126.06,126.05,256.2733]
[1743599253854,0.063,126.06,126.05,248.34]
[1743599255554,0.063,126.06,126.05,275.06511043]
[1743599256155,0.063,126.09,126.08,38.79181043]
[1743599256351,0.063,126.09,126.08,45.93181043]
[1743599256968,0.063,126.09,126.08,27.28216157]
[1743599258268,0.063,126.09,126.08,27.14]
[1743599258882,19.66415296,126.09,126.08,7.16]
[1743599259074,19.66415296,126.09,126.06,20.0]
[1743599259250,19.66415296,126.09,126.08,7.16]
[1743599259471,19.66415296,126.09,126.06,248.26]
[1743599259666,7.9314,126.08,126.07,7.16]
[1743599261577,7.9938,126.09,126.07,7.16]
[1743599262194,27.59495296,126.09,126.07,7.16]
[1743599262992,21.24735296,126.08,126.06,248.26]
[1743599263295,19.60115296,126.07,126.06,228.26]
[1743599263594,27.53325296,126.07,126.06,228.26]
[1743599263889,7.9321,126.07,126.06,248.26]
[1743599264291,7.9321,126.07,126.06,255.4]
[1743599266295,7.9321,126.07,126.06,248.26]
[1743599266497,7.9321,126.07,126.06,255.4]
[1743599269190,7.9321,126.07,126.06,235.4]
[1743599270003,7.9321,126.07,126.06,255.4]
[1743599271208,7.9321,126.07,126.06,255.43]
[1743599272284,7.9321,126.07,126.06,235.43]
[1743599275599,47.36345296,126.07,126.04,248.28]
[1743599275808,47.36345296,126.07,126.05,7.12]
[1743599275809,19.60115296,126.06,126.05,7.12]
[1743599277502,7.9333,126.05,126.04,248.28]
[1743599277706,27.53445296,126.05,126.04,228.28]
[1743599277910,27.53445296,126.05,126.04,235.38]
[1743599280407,7.9333,126.05,126.04,235.38]
[1743599281493,27.53445296,126.05,126.04,235.38]
[1743599281695,7.9333,126.05,126.04,235.38]
[1743599282207,7.9333,126.05,126.04,255.38]
[1743599284018,27.53445296,126.05,126.04,255.38]
[1743599284590,7.9333,126.05,126.04,255.38]
[1743599284794,7.9333,126.05,126.04,255.41]
[1743599286210,7.9333,126.05,126.04,235.41]
[1743599286413,27.53445296,126.05,126.04,235.41]
[1743599287002,7.9333,126.05,126.04,235.41]
[1743599287797,27.53445296,126.05,126.04,235.41]
[1743599288712,27.53445296,126.05,126.04,228.31]
[1743599288930,1.5223,126.04,126.01,228.32]
[1743599289221,19.60115296,126.02,126.01,228.32]
[1743599290297,27.53635296,126.02,126.01,235.42]
[1743599290699,47.37445296,126.02,125.99,228.32]
[1743599290916,19.60115296,126.01,125.99,228.32]
[1743599291497,19.60115296,126.0,125.99,228.32]
[1743599291898,19.60115296,126.01,125.99,235.42]
[1743599292320,27.53765296,126.0,125.99,235.42]
[1743599292918,27.53765296,126.0,125.99,235.4]
[1743599293301,27.53765296,126.0,125.99,228.32]
[1743599293615,27.53765296,126.0,125.99,235.4]
[1743599295104,47.37885296,126.0,125.98,7.08]
[1743599295306,19.60115296,125.99,125.98,7.08]
[1743599295919,19.60115296,125.99,125.97,228.36]
[1743599296122,19.60115296,125.98,125.97,228.36]
[1743599296315,48.98435296,125.98,125.96,7.08]
[1743599296501,19.60115296,125.97,125.96,7.08]
[1743599298634,27.53945296,125.97,125.96,7.08]
[1743599299720,7.9383,125.97,125.96,7.08]
[1743599300228,7.9383,125.97,125.95,0.03]
[1743599300537,7.9383,125.97,125.96,7.08]
[1743599301326,7.9383,125.97,125.96,27.08]
[1743599301726,7.9371,125.99,125.96,27.08]
[1743599301898,27.53825296,125.99,125.96,27.08]
[1743599302219,19.60115296,125.97,125.96,27.08]
[1743599302427,19.60115296,125.98,125.96,27.08]
[1743599302816,19.60115296,125.97,125.96,7.08]
[1743599304327,19.60115296,125.97,125.95,0.03]
[1743599304525,19.60115296,125.96,125.95,0.03]
[1743599304830,7.9396,125.95,125.94,228.36]
[1743599305029,27.54075296,125.95,125.94,235.44]
[1743599305335,7.9396,125.95,125.94,235.44]
[1743599305506,27.54075296,125.95,125.94,235.44]
[1743599309731,27.54075296,125.95,125.94,235.47]
[1743599309925,46.19040182,125.95,125.93,0.03]
[1743599310124,19.60115296,125.94,125.93,0.03]
[1743599311224,20.0,125.92,125.91,228.51]
[1743599311437,39.60115296,125.92,125.91,228.51]
[1743599312257,47.54265296,125.92,125.91,228.51]
[1743599312438,47.54265296,125.92,125.91,235.57]
[1743599313240,7.9415,125.92,125.91,235.57]
[1743599313449,27.54135296,125.94,125.91,235.57]
[1743599313742,19.60115296,125.93,125.91,235.57]
[1743599314248,7.9415,125.92,125.91,235.57]
[1743599316049,27.54075296,125.95,125.92,20.0]
[1743599316449,7.9396,125.95,125.92,20.0]
[1743599316628,19.60115296,125.94,125.92,20.0]
[1743599317139,19.60115296,125.94,125.91,235.57]
[1743599317341,19.60115296,125.93,125.91,235.57]
[1743599318649,7.9415,125.92,125.91,235.57]
[1743599318947,27.54265296,125.92,125.91,235.57]
[1743599320253,27.54265296,125.92,125.91,235.55]
[1743599323046,19.66415296,125.93,125.91,235.55]
[1743599323257,27.60505296,125.93,125.91,235.55]
[1743599323827,20.59229709,125.93,125.91,235.55]
[1743599324027,8.0039,125.93,125.91,235.55]
[1743599324942,20.59229709,125.93,125.91,235.55]
[1743599325656,8.0039,125.93,125.91,235.55]
[1743599326331,0.063,125.93,125.91,235.55]
[1743599326535,0.063,125.93,125.92,20.0]
[1743599333174,0.063,125.93,125.92,27.9415]
[1743599337776,0.063,125.93,125.92,28.08366157]
[1743599341642,0.063,125.93,125.92,20.0]
[1743599341847,0.063,125.93,125.91,228.51]
[1743599342067,0.063,125.93,125.92,7.0]
[1743599342343,0.063,125.93,125.91,228.51]
[1743599342561,0.063,125.93,125.92,7.0]
[1743599343139,0.063,125.93,125.92,27.0]
[1743599343539,0.063,125.93,125.92,27.14216157]
[1743599343849,0.063,125.93,125.92,35.08366157]
[1743599345368,0.063,125.93,125.92,27.14216157]
[1743599347042,0.063,125.93,125.92,27.0]
[1743599347448,0.063,125.93,125.92,20.0]
[1743599347675,0.063,125.93,125.92,7.0]
[1743599347983,0.063,125.93,125.91,228.51]
[1743599348149,12.65139709,125.93,125.92,7.0]
[1743599349278,20.59229709,125.93,125.92,7.0]
[1743599349662,27.67464553,125.93,125.91,228.51]
[1743599349976,27.67464553,125.93,125.9,0.03]
[1743599349977,19.67074553,125.92,125.9,0.03]
[1743599350179,19.67074553,125.91,125.9,7.03]
[1743599350985,18.64964886,125.92,125.9,7.03]
[1743599351159,7.9421,125.91,125.9,7.03]
[1743599352379,7.9417,125.92,125.9,7.03]
[1743599354287,19.67074553,125.91,125.9,7.03]
[1743599354657,27.61244553,125.92,125.9,7.03]
[1743599356147,19.67074553,125.91,125.9,7.03]
[1743599358077,27.61284553,125.91,125.9,7.03]
[1743599358250,7.9421,125.91,125.9,7.03]
[1743599358855,27.61284553,125.91,125.9,7.03]
[1743599359767,7.9421,125.91,125.9,7.03]
[1743599362163,7.9421,125.91,125.9,27.03]
[1743599365593,7.9421,125.91,125.9,255.59]
[1743599367184,27.61284553,125.91,125.9,235.59]
[1743599368495,27.61284553,125.91,125.9,228.59]
[1743599368676,47.46824553,125.91,125.88,20.0]
[1743599368883,27.7975,125.91,125.9,6.98]
[1743599369579,27.7975,125.91,125.9,7.01]
[1743599369883,27.8605,125.91,125.9,7.01]
[1743599370068,47.53124553,125.91,125.9,7.01]
[1743599370272,47.53124553,125.91,125.88,20.0]
[1743599370483,19.67074553,125.89,125.88,20.0]
[1743599370865,27.61414553,125.89,125.87,228.56]
[1743599371067,19.67074553,125.88,125.87,228.56]
[1743599371562,19.67074553,125.88,125.87,235.54]
[1743599371787,12.59835011,125.88,125.87,235.54]
[1743599372583,12.59835011,125.88,125.87,228.56]
[1743599372788,12.59835011,125.88,125.87,235.54]
[1743599373087,20.54235011,125.88,125.87,235.54]
[1743599373587,20.54235011,125.88,125.87,228.56]
[1743599373887,20.54235011,125.88,125.87,235.54]
[1743599374882,20.54235011,125.88,125.87,228.56]
[1743599375087,20.54235011,125.88,125.87,235.54]
[1743599377186,20.54235011,125.88,125.85,7.01]
[1743599377187,109.44549941,125.88,125.85,7.01]
[1743599377367,12.59835011,125.86,125.85,7.01]
[1743599377767,12.59835011,125.86,125.85,0.03]
[1743599378078,12.59835011,125.86,125.85,7.01]
[1743599378591,20.54365011,125.86,125.85,7.01]
[1743599378800,20.54365011,125.86,125.85,0.03]
[1743599378977,39.33546054,125.86,125.85,0.03]
[1743599380182,39.33546054,125.86,125.85,0.0001]
[1743599380591,40.85506054,125.86,125.85,0.0001]
[1743599382270,40.71289897,125.86,125.85,0.0001]
[1743599382468,22.06325011,125.86,125.85,0.0001]
[1743599382779,7.9434,125.89,125.85,0.0001]
[1743599382986,20.54175011,125.89,125.85,0.0001]
[1743599383699,27.62601435,125.89,125.85,0.0001]
[1743599384395,7.9434,125.89,125.85,0.0001]
[1743599384578,27.62601435,125.89,125.85,0.0001]
[1743599385987,8.0059,125.9,125.88,20.0]
[1743599386188,8.0059,125.9,125.89,6.98]
[1743599387393,0.063,125.9,125.89,6.98]
[1743599390793,0.063,125.9,125.89,235.6]
[1743599401411,0.063,125.9,125.89,228.62]
[1743599401708,19.74561435,125.9,125.89,235.6]
[1743599401906,27.68841435,125.9,125.89,228.62]
[1743599402115,27.68841435,125.9,125.89,235.6]
[1743599402818,8.0058,125.9,125.89,235.6]
[1743599403116,0.063,125.9,125.89,235.6]
[1743599404811,12.64826686,125.9,125.89,235.6]
[1743599405493,31.44007729,125.9,125.89,228.62]
[1743599405688,18.64964886,125.89,125.88,6.98]
[1743599405882,31.23491572,125.89,125.85,228.5801]
[1743599406113,27.8041,125.88,125.85,228.5801]
[1743599406286,12.58526686,125.86,125.85,228.5801]
[1743599406679,12.58526686,125.86,125.84,0.03]
[1743599406904,12.58526686,125.85,125.84,0.03]
[1743599407098,12.58526686,125.85,125.84,7.01]
[1743599407603,12.58526686,125.85,125.83,228.58]
[1743599407802,19.69880834,125.84,125.83,228.58]
[1743599408607,27.64530834,125.84,125.83,235.56]
[1743599408791,7.9465,125.84,125.83,235.56]
[1743599411408,7.9462,125.85,125.83,235.56]
[1743599411588,41.22330834,125.88,125.84,20.0]
[1743599411783,7.9447,125.87,125.84,20.0]
[1743599412083,7.9447,125.87,125.86,20.0]
[1743599412705,9.6081,125.88,125.86,20.0]
[1743599412909,7.9435,125.89,125.88,20.0]
[1743599413119,7.9435,125.89,125.88,26.98]